[Event "1000GM Winter GM Norm-2 2024"]
[Site "Sunnyvale/"]
[Date "2024.01.03"]
[Round "1.9"]
[White "Guo, Andrew"]
[Black "Mosquera, Miguel"]
[Result "1/2-1/2"]
[ECO "D11"]
[WhiteElo "2255"]
[BlackElo "2365"]
[Annotator "RC"]
[PlyCount "43"]
[EventDate "2023.12.14"]
[EventType "schev"]
[EventCountry "USA"]
[SourceTitle "playchess.com"]
[Source "ChessBase"]
[SourceQuality "1"]
[TimeControl "5400+30"]

1. d4 {[%emt 0:00:02]} d5 {[%emt 0:02:02]} 2. Nf3 {[%emt 0:00:11]} Nf6 {[%emt 0:00:08]} 3. c4 {[%emt 0:00:03]} c6 {[%emt 0:00:06]} 4. Nbd2 {[%emt 0:00:44]} Bf5 {[%emt 0:00:47]} 5. Nh4 {[%emt 0:00:12]} Be4 {[%emt 0:01:15]} 6. Qb3 {[%emt 0:00:07]} Qc7 {[%emt 0:12:16]} 7. Nxe4 {[%emt 0:00:37]} Nxe4 {[%emt 0:00:12]} 8. Nf3 {[%emt 0:00:07]} e6 {[%emt 0:05:54]} 9. Nd2 {[%emt 0:00:15]} Nf6 {[%emt 0:03:15]} 10. g3 {[%emt 0:01:55]} Nbd7 {[%emt 0:05:05]} 11. Bg2 {[%emt 0:00:42]} Be7 {[%emt 0:00:19]} 12. O-O {[%emt 0:00:08]} O-O {[%emt 0:00:04]} 13. Qc2 {[%emt 0:00:42]} Rac8 {[%emt 0:06:11]} 14. b3 {[%emt 0:01:52]} c5 {[%emt 0:08:34]} 15. dxc5 {[%emt 0:15:30]} Bxc5 {[%emt 0:02:40]} 16. Bb2 {[%emt 0:01:32]} b5 {[%emt 0:05:33]} 17. Rac1 {[%emt 0:15:46]} bxc4 {[%emt 0:15:53]} 18. bxc4 {[%emt 0:00:12]} Ne5 {[%emt 0:29:16]} 19. e3 {[%emt 0:17:38]} Bb4 {[%emt 0:00:00]} 20. Bxe5 {[%emt 0:00:12]} Qxe5 {[%emt 0:00:00]} 21. Nf3 {[%emt 0:00:23]} Qb8 {[%emt 0:00:00]} 22. Qb3 {[%emt 0:42:40]} 1/2-1/2

[Event "1000GM Winter GM Norm-2 2024"]
[Site "Sunnyvale/"]
[Date "2024.01.03"]
[Round "2.1"]
[White "Xu, Yi"]
[Black "Rajaram, Rohan"]
[Result "1-0"]
[ECO "B20"]
[WhiteElo "2511"]
[BlackElo "2151"]
[Annotator "TA"]
[PlyCount "109"]
[EventDate "2023.12.14"]
[EventType "schev"]
[EventCountry "USA"]
[SourceTitle "playchess.com"]
[Source "ChessBase"]
[SourceQuality "1"]
[TimeControl "5400+30"]

{[%evp 9,109,24,30,33,34,31,34,0,22,6,37,41,57,20,17,15,47,43,39,19,18,10,35,7,125,122,108,129,132,135,137,129,137,135,126,133,145,128,153,135,120,60,323,329,351,362,341,358,353,341,356,371,452,435,450,447,421,360,413,410,459,442,579,569,565,537,539,410,469,458,753,753,733,736,722,719,712,646,12841,12841,12843,12843,29985,12844,29986,29987,29987,29988,29988,29988,29989,29990,29991,29992,29992,29992,29992,29991,29993,29994,29994,29995]} 1. e4 {[%emt 0:00:29]} c5 {[%emt 0:00:05]} 2. Ne2 {[%emt 0:00:07]} d6 {[%emt 0:00:06]} 3. g3 {[%emt 0:00:08]} Nf6 {[%emt 0:00:25]} 4. Bg2 {[%emt 0:00:06]} e6 {[%emt 0:01:04]} 5. c3 {[%emt 0:00:38]} Be7 {[%emt 0:00:30]} 6. d4 {[%emt 0:00:08] B20: Sicilian: Unusual White 2nd moves.} O-O {[%emt 0:00:55]} 7. O-O {[%emt 0:01:17]} Nc6 {[%emt 0:02:15]} 8. h3 {[%emt 0:00:47] White is slightly better.} Qc7 {[%emt 0:01:41]} 9. Be3 {[%emt 0:01:08] [#]} Rd8 $146 {[%emt 0:01:33]} ({Predecessor:} 9... b6 10. Nd2 Bb7 11. f4 Rad8 12. Kh2 Na5 13. Rc1 d5 14. e5 Ne4 15. Nxe4 dxe4 {0-1 Antolak,J (2306)-Tsolakidou,S (2379) FIDE World Uni (Women) 1st blitz 2021 (1)}) 10. Nd2 {[%emt 0:05:18]} b6 {[%emt 0:02:47]} 11. f4 {[%emt 0:06:23]} cxd4 {[%emt 0:06:33]} 12. cxd4 {[%emt 0:00:18][%cal Bc3d4,Bd4d5][%mdl 32]} Bb7 {[%emt 0:01:42]} 13. Rc1 {[%emt 0:02:21]} Qd7 {[%emt 0:00:31]} 14. Kh2 {[%emt 0:03:44]} Rac8 {[%emt 0:03:01]} 15. a3 {[%emt 0:01:20]} Ba6 {[%emt 0:02:40]} 16. Re1 {[%emt 0:06:19]} Rc7 {[%emt 0:07:36]} (16... d5 $11) 17. d5 $16 {[%emt 0:15:24]} Na5 {[%emt 0:11:54]} 18. Rxc7 {[%emt 0:03:24]} Qxc7 {[%emt 0:00:08]} 19. Nd4 {[%emt 0:06:16]} Qd7 {[%emt 0:04:30]} 20. b4 {[%emt 0:05:58]} Nc4 {[%emt 0:01:06]} 21. Nxc4 {[%emt 0:01:16]} Bxc4 {[%emt 0:00:08]} 22. Nc6 $36 {[%emt 0:00:15][%mdl 2048] Keeping Black busy.} Re8 {[%emt 0:01:36]} 23. a4 {[%emt 0:00:47] White is much more active.} exd5 {[%emt 0:07:54]} 24. exd5 {[%emt 0:00:10]} Bf8 {[%emt 0:01:47]} 25. b5 {[%emt 0:04:51]} ({White should play} 25. g4 $16 {Black must now prevent g5.} b5 26. axb5 (26. Nxa7 Rxe3 {[%mdl 64] Remove Defender} 27. Rxe3 Qxa7 $17) 26... Bxb5 27. g5 (27. Nxa7 $2 Rxe3 {[%mdl 64] Remove Defender} 28. Rxe3 Qxa7 $17)) 25... h5 $2 {[%emt 0:05:13][%mdl 8192] [#] This move loses the game for Black.} (25... Qf5 $1 $14) 26. Qd4 $18 {[%emt 0:02:20]} Ba2 {[%emt 0:03:19]} 27. Qd3 {[%emt 0:03:59] Against Qf5} h4 {[%emt 0:06:07]} 28. gxh4 {[%emt 0:01:05] aiming for Re2.} g6 {[%emt 0:06:01]} 29. Nb4 {[%emt 0:03:56][%cal Bc6b4,Bb4a2,Ba2c3][%mdl 32]} Nh5 {[%emt 0:01:09]} 30. Nxa2 {[%emt 0:03:05]} Bh6 {[%emt 0:01:53]} 31. Rf1 {[%emt 0:05:30]} Qe7 {[%emt 0:01:06]} 32. Bd2 {[%emt 0:00:03]} Qxh4 {[%emt 0:03:23]} 33. Qf3 {[%emt 0:01:02]} Nf6 {[%emt 0:01:08]} 34. Nc3 {[%emt 0:01:02]} Kh7 {[%emt 0:00:23]} 35. Qg3 {[%emt 0:02:27]} Qh5 {[%emt 0:00:04]} 36. Re1 {[%emt 0:01:03]} Rxe1 {[%emt 0:00:27]} 37. Qxe1 {[%emt 0:00:17]} Qf5 {[%emt 0:00:08]} 38. Kg1 {[%emt 0:00:47]} Nh5 {[%emt 0:00:36]} 39. Qe4 {[%emt 0:01:33]} Bxf4 {[%emt 0:00:22]} (39... Qd7 $142 40. Qc4 Ng3) 40. Qxf5 {[%emt 0:00:55]} gxf5 {[%emt 0:00:04]} 41. Bxf4 {[%emt 0:01:26]} Nxf4 {[%emt 0:00:06]} 42. Kf2 {[%emt 0:00:22]} Kg6 {[%emt 0:00:02]} 43. Kf3 {[%emt 0:01:11]} Nxg2 {[%emt 0:00:04]} 44. Kxg2 {[%emt 0:00:09][%mdl 4096] Endgame KN-KP} Kg5 {[%emt 0:00:02]} 45. Kf3 {[%emt 0:00:09] [#] Intending Nd1 and mate.} Kg6 {[%emt 0:00:02]} 46. Kf4 {[%emt 0:00:13] White wants to mate with Nd1.} Kf6 {[%emt 0:00:04]} 47. Ne2 {[%emt 0:00:07] White mates.} Kg6 {[%emt 0:00:01]} 48. Nd4 {[%emt 0:00:06]} Kf6 {[%emt 0:00:03]} 49. Nc6 {[%emt 0:00:06]} Kg6 {[%emt 0:00:03]} 50. Nxa7 {[%emt 0:00:06]} Kf6 {[%emt 0:00:03]} 51. Nc8 {[%emt 0:00:06]} Kg6 {[%emt 0:00:02]} 52. Nxb6 {[%emt 0:00:07]} Kf6 {[%emt 0:00:02]} 53. a5 {[%emt 0:00:08][%cal Ba4a5,Ba5a6,Ba6a7][%mdl 32]} Kg6 {[%emt 0:00:02]} 54. a6 {[%emt 0:00:06]} Kf6 {[%emt 0:00:02]} 55. a7 {[%emt 0:00:06] Weighted Error Value: White=0.13 (very precise) /Black=0.47} 1-0

[Event "1000GM Winter GM Norm-2 2024"]
[Site "Sunnyvale/"]
[Date "2024.01.03"]
[Round "2.3"]
[White "Lou, Yiping"]
[Black "Wang, Isaac"]
[Result "1/2-1/2"]
[ECO "B42"]
[WhiteElo "2447"]
[BlackElo "2316"]
[Annotator "RC"]
[PlyCount "73"]
[EventDate "2023.12.14"]
[EventType "schev"]
[EventCountry "USA"]
[SourceTitle "playchess.com"]
[Source "ChessBase"]
[SourceQuality "1"]
[TimeControl "5400+30"]

1. e4 {[%emt 0:00:04]} c5 {[%emt 0:00:33]} 2. Nf3 {[%emt 0:00:02]} e6 {[%emt 0:00:20]} 3. d4 {[%emt 0:00:14]} cxd4 {[%emt 0:00:14]} 4. Nxd4 {[%emt 0:00:04]} a6 {[%emt 0:00:09]} 5. Bd3 {[%emt 0:01:00]} Bc5 {[%emt 0:00:48]} 6. Nb3 {[%emt 0:00:08]} Ba7 {[%emt 0:00:05]} 7. Qe2 {[%emt 0:00:57]} Nc6 {[%emt 0:01:05]} 8. Be3 {[%emt 0:01:07]} d6 {[%emt 0:01:43]} 9. O-O {[%emt 0:02:45]} Nge7 {[%emt 0:01:16]} 10. c4 {[%emt 0:00:51]} O-O {[%emt 0:01:28]} 11. Nc3 {[%emt 0:00:07]} e5 {[%emt 0:04:55]} 12. Bxa7 {[%emt 0:04:32]} Rxa7 {[%emt 0:00:09]} 13. Qe3 {[%emt 0:00:05]} Be6 {[%emt 0:03:02]} 14. Rfd1 {[%emt 0:02:00]} Qb8 {[%emt 0:04:05]} 15. Rd2 {[%emt 0:03:52]} b6 {[%emt 0:06:17]} 16. Rad1 {[%emt 0:06:48]} Rd8 {[%emt 0:06:59]} 17. Bf1 {[%emt 0:05:47]} h6 {[%emt 0:10:29]} 18. g3 {[%emt 0:01:07]} Rb7 {[%emt 0:06:33]} 19. Nd5 {[%emt 0:05:48]} a5 {[%emt 0:06:00]} 20. Nc3 {[%emt 0:01:30]} Nb4 {[%emt 0:04:46]} 21. a3 {[%emt 0:04:19]} Na6 {[%emt 0:00:57]} 22. Na1 {[%emt 0:00:14]} Rbd7 {[%emt 0:05:36]} 23. Nd5 {[%emt 0:08:51]} Bxd5 {[%emt 0:06:52]} 24. cxd5 {[%emt 0:00:54]} Ra7 {[%emt 0:00:39]} 25. Rc1 {[%emt 0:04:23]} a4 {[%emt 0:01:55]} 26. Bxa6 {[%emt 0:09:41]} Rxa6 {[%emt 0:00:07]} 27. Rdc2 {[%emt 0:00:02]} Ra5 {[%emt 0:04:43]} 28. Rc4 {[%emt 0:00:40]} Rc8 {[%emt 0:02:38]} 29. Rxc8+ {[%emt 0:16:54]} Nxc8 {[%emt 0:00:07]} 30. Nc2 {[%emt 0:00:01]} Rc5 {[%emt 0:00:56]} 31. Nb4 {[%emt 0:00:05]} Qc7 {[%emt 0:03:46]} 32. Nc6 {[%emt 0:00:28]} Na7 {[%emt 0:01:10]} 33. Rxc5 {[%emt 0:02:18]} bxc5 {[%emt 0:00:06]} 34. Nxa7 {[%emt 0:00:08]} Qxa7 {[%emt 0:00:06]} 35. b4 {[%emt 0:00:03]} axb3 {[%emt 0:00:55]} 36. Qxb3 {[%emt 0:00:04]} Qa5 {[%emt 0:01:58]} 37. Kg2 {[%emt 0:02:38]} 1/2-1/2

[Event "1000GM Winter GM Norm-2 2024"]
[Site "Sunnyvale/"]
[Date "2024.01.03"]
[Round "2.4"]
[White "Mosquera, Miguel"]
[Black "Amburgy, Ryan"]
[Result "1/2-1/2"]
[ECO "C84"]
[WhiteElo "2365"]
[BlackElo "2200"]
[Annotator "RC"]
[PlyCount "102"]
[EventDate "2023.12.14"]
[EventType "schev"]
[EventCountry "USA"]
[SourceTitle "playchess.com"]
[Source "ChessBase"]
[SourceQuality "1"]
[TimeControl "5400+30"]

1. e4 {[%emt 0:05:48]} e5 {[%emt 0:00:06]} 2. Nf3 {[%emt 0:00:19]} Nc6 {[%emt 0:00:07]} 3. Bb5 {[%emt 0:00:20]} a6 {[%emt 0:00:07]} 4. Ba4 {[%emt 0:00:06]} Nf6 {[%emt 0:00:05]} 5. d4 {[%emt 0:00:24]} exd4 {[%emt 0:00:08]} 6. e5 {[%emt 0:00:32]} Ne4 {[%emt 0:00:07]} 7. O-O {[%emt 0:00:10]} Be7 {[%emt 0:00:07]} 8. Nxd4 {[%emt 0:03:05]} O-O {[%emt 0:00:12]} 9. Re1 {[%emt 0:09:03]} Nxd4 {[%emt 0:01:48]} 10. Qxd4 {[%emt 0:00:57]} d5 {[%emt 0:00:45]} 11. exd6 {[%emt 0:00:29]} Nxd6 {[%emt 0:00:04]} 12. Nc3 {[%emt 0:01:14]} Bf6 {[%emt 0:09:27]} 13. Qd3 {[%emt 0:16:28]} Be6 {[%emt 0:13:02]} 14. Nd5 {[%emt 0:06:19]} Bxd5 {[%emt 0:01:02]} 15. Qxd5 {[%emt 0:00:07]} c6 {[%emt 0:00:19]} 16. Qd1 {[%emt 0:01:28]} Qa5 {[%emt 0:04:23]} 17. c3 {[%emt 0:00:29]} Rad8 {[%emt 0:00:34]} 18. Bb3 {[%emt 0:06:36]} Nf5 {[%emt 0:09:19]} 19. Qe2 {[%emt 0:02:23]} g6 {[%emt 0:00:44]} 20. Bf4 {[%emt 0:00:51]} Rd7 {[%emt 0:01:25]} 21. Rad1 {[%emt 0:01:35]} Re7 {[%emt 0:00:52]} 22. Qc4 {[%emt 0:02:37]} Rd8 {[%emt 0:01:48]} 23. h3 {[%emt 0:07:59]} Rxd1 {[%emt 0:05:36]} 24. Rxd1 {[%emt 0:00:07]} Ng7 {[%emt 0:00:11]} 25. Bd6 {[%emt 0:10:44]} Rd7 {[%emt 0:00:04]} 26. Bb4 {[%emt 0:00:18]} Rxd1+ {[%emt 0:00:19]} 27. Bxd1 {[%emt 0:00:01]} Qe5 {[%emt 0:00:37]} 28. Qe2 {[%emt 0:01:10]} Ne6 {[%emt 0:01:36]} 29. g3 {[%emt 0:02:46]} Qf5 {[%emt 0:02:24]} 30. Qf3 {[%emt 0:02:24]} Qe5 {[%emt 0:00:19]} 31. Qe2 {[%emt 0:02:28]} Qf5 {[%emt 0:00:51]} 32. Qf3 {[%emt 0:00:08]} Qe5 {[%emt 0:00:05]} 33. Kg2 {[%emt 0:03:27]} Bd8 {[%emt 0:04:46]} 34. Bb3 {[%emt 0:01:51]} Bb6 {[%emt 0:00:50]} 35. h4 {[%emt 0:00:28]} Kg7 {[%emt 0:01:09]} 36. Be7 {[%emt 0:01:46]} h5 {[%emt 0:02:21]} 37. Kf1 {[%emt 0:00:48]} Bc5 {[%emt 0:02:44]} 38. Bxc5 {[%emt 0:06:33]} Qxc5 {[%emt 0:00:01]} 39. Ke2 {[%emt 0:00:16]} Qb5+ {[%emt 0:02:59]} 40. Qd3 {[%emt 0:00:39]} Qe5+ {[%emt 0:00:08]} 41. Qe3 {[%emt 0:00:33]} Qf5 {[%emt 0:00:07]} 42. Bxe6 {[%emt 0:00:57]} Qb5+ {[%emt 0:01:37]} 43. Kf3 {[%emt 0:02:32]} fxe6 {[%emt 0:00:01]} 44. Qxe6 {[%emt 0:00:12]} Qxb2 {[%emt 0:00:03]} 45. Qe7+ {[%emt 0:00:11]} Kg8 {[%emt 0:00:16]} 46. Qe8+ {[%emt 0:01:43]} Kg7 {[%emt 0:00:02]} 47. Qe7+ {[%emt 0:00:13]} Kg8 {[%emt 0:00:01]} 48. Qe8+ {[%emt 0:01:45]} Kg7 {[%emt 0:00:02]} 49. Qe7+ {[%emt 0:00:07]} Kg8 {[%emt 0:00:33]} 50. Qf6 {[%emt 0:02:04]} Qxa2 {[%emt 0:39:17]} 51. Qxg6+ {[%emt 0:00:30]} Kf8 1/2-1/2

[Event "1000GM Winter GM Norm-2 2024"]
[Site "Sunnyvale/"]
[Date "2024.01.03"]
[Round "2.5"]
[White "Guo, Andrew"]
[Black "Nagy, Gabor"]
[Result "1/2-1/2"]
[ECO "E62"]
[WhiteElo "2255"]
[BlackElo "2450"]
[Annotator "RC"]
[PlyCount "41"]
[EventDate "2023.12.14"]
[EventType "schev"]
[EventCountry "USA"]
[SourceTitle "playchess.com"]
[Source "ChessBase"]
[SourceQuality "1"]
[TimeControl "5400+30"]

1. d4 {[%emt 1:31:00]} Nf6 {[%emt 0:01:01]} 2. c4 {[%emt 0:00:00]} g6 {[%emt 0:00:15]} 3. Nf3 {[%emt 0:00:00]} Bg7 {[%emt 0:00:15]} 4. g3 {[%emt 0:00:00]} O-O {[%emt 0:00:39]} 5. Bg2 {[%emt 0:00:00]} d6 {[%emt 0:00:19]} 6. Nc3 {[%emt 0:00:00]} c6 {[%emt 0:00:35]} 7. e4 {[%emt 0:00:00]} Bg4 {[%emt 0:03:34]} 8. h3 {[%emt 0:00:00]} Bxf3 {[%emt 0:01:37]} 9. Bxf3 {[%emt 0:00:00]} Nbd7 {[%emt 0:00:52]} 10. O-O {[%emt 0:00:00]} a6 {[%emt 0:02:59]} 11. Be3 {[%emt 0:00:00]} Rc8 {[%emt 0:03:14]} 12. Qb3 {[%emt 0:00:00]} Qc7 {[%emt 0:08:16]} 13. Rfd1 {[%emt 0:00:00]} c5 {[%emt 0:03:22]} 14. d5 {[%emt 0:00:00]} e6 {[%emt 0:00:48]} 15. dxe6 {[%emt 0:00:00]} fxe6 {[%emt 0:00:22]} 16. Bf4 {[%emt 0:00:00]} Ne5 {[%emt 0:01:05]} 17. Bxe5 {[%emt 0:00:00]} dxe5 {[%emt 0:00:23]} 18. Na4 {[%emt 0:00:00]} Rfd8 {[%emt 0:00:58]} 19. Nb6 {[%emt 0:00:00]} Rb8 {[%emt 0:00:44]} 20. a4 {[%emt 0:00:00]} Bf8 {[%emt 1:09:12]} 21. a5 {[%emt 0:10:00]} 1/2-1/2

[Event "1000GM Winter GM Norm-2 2024"]
[Site "Sunnyvale/"]
[Date "2024.01.03"]
[Round "2.6"]
[White "Shivakumar, Shawnak"]
[Black "Miezis, Normunds"]
[Result "1/2-1/2"]
[ECO "B42"]
[WhiteElo "2307"]
[BlackElo "2419"]
[Annotator "RC"]
[PlyCount "47"]
[EventDate "2023.12.14"]
[EventType "schev"]
[EventCountry "USA"]
[SourceTitle "playchess.com"]
[Source "ChessBase"]
[SourceQuality "1"]
[TimeControl "5400+30"]

1. e4 {[%emt 0:04:21]} c5 {[%emt 0:00:18]} 2. Nf3 {[%emt 0:00:39]} e6 {[%emt 0:00:14]} 3. d4 {[%emt 0:00:41]} cxd4 {[%emt 0:00:12]} 4. Nxd4 {[%emt 0:00:05]} a6 {[%emt 0:00:08]} 5. Bd3 {[%emt 0:00:37]} g6 {[%emt 0:03:19]} 6. O-O {[%emt 0:01:27]} Bg7 {[%emt 0:00:20]} 7. Be3 {[%emt 0:00:50]} Nc6 {[%emt 0:02:19]} 8. Nxc6 {[%emt 0:00:08]} bxc6 {[%emt 0:00:29]} 9. c4 {[%emt 0:00:42]} Ne7 {[%emt 0:03:37]} 10. c5 {[%emt 0:14:00]} O-O {[%emt 0:02:23]} 11. Nd2 {[%emt 0:02:46]} f5 {[%emt 0:00:19]} 12. f3 {[%emt 0:09:01]} f4 {[%emt 0:06:25]} 13. Bf2 {[%emt 0:01:35]} g5 {[%emt 0:00:08]} 14. Nc4 {[%emt 0:04:20]} Ng6 {[%emt 0:00:14]} 15. Be2 {[%emt 0:04:18]} a5 {[%emt 0:15:54]} 16. Nb6 {[%emt 0:04:47]} Ra7 {[%emt 0:05:23]} 17. Qd2 {[%emt 0:04:05]} Qf6 {[%emt 0:04:11]} 18. Rab1 {[%emt 0:06:51]} h5 {[%emt 0:02:06]} 19. Rfd1 {[%emt 0:11:13]} g4 {[%emt 0:05:37]} 20. fxg4 {[%emt 0:16:40]} hxg4 {[%emt 0:02:00]} 21. Bxg4 {[%emt 0:00:36]} Qg5 {[%emt 0:00:47]} 22. Bf3 {[%emt 0:00:51]} Ne5 {[%emt 0:01:42]} 23. Kh1 {[%emt 0:00:57]} Kf7 {[%emt 0:09:28]} 24. Bg1 {[%emt 0:11:00]} 1/2-1/2

[Event "1000GM Winter GM Norm-2 2024"]
[Site "Sunnyvale/"]
[Date "2024.01.03"]
[Round "2.7"]
[White "Liu, Eric"]
[Black "Figueredo Losada, Leonel"]
[Result "1-0"]
[ECO "B80"]
[WhiteElo "2332"]
[BlackElo "2381"]
[Annotator "RC"]
[PlyCount "36"]
[EventDate "2023.12.14"]
[EventType "schev"]
[EventCountry "USA"]
[SourceTitle "playchess.com"]
[Source "ChessBase"]
[SourceQuality "1"]
[TimeControl "5400+30"]

1. e4 {[%emt 0:00:01]} c5 {[%emt 1:31:00]} 2. Nf3 d6 3. d4 cxd4 4. Nxd4 Nf6 5. Nc3 a6 6. Be3 e6 7. a3 Nbd7 8. g4 h6 9. h4 b5 10. Rg1 g6 11. g5 hxg5 12. hxg5 Nh5 13. Qd2 Qc7 14. O-O-O Nb6 {[%emt 0:00:00]} 15. Ndxb5 {[%emt 0:06:38]} axb5 {[%emt 0:01:20]} 16. Nxb5 {[%emt 0:51:57]} Qc6 {[%emt 0:05:35]} 17. Qd4 {[%emt 0:00:41]} Rb8 {[%emt 0:00:32]} 18. Qxh8 {[%emt 0:00:42]} Kd7 {[%emt 0:00:29]} 1-0

[Event "1000GM Winter GM Norm-2 2024"]
[Site "Sunnyvale/"]
[Date "2024.01.03"]
[Round "2.8"]
[White "Sathish, Pranav"]
[Black "Sheng, Joshua"]
[Result "1-0"]
[ECO "B40"]
[WhiteElo "2357"]
[BlackElo "2461"]
[Annotator "TA"]
[PlyCount "69"]
[EventDate "2023.12.14"]
[EventType "schev"]
[EventCountry "USA"]
[SourceTitle "playchess.com"]
[Source "ChessBase"]
[SourceQuality "1"]
[TimeControl "5400+30"]

{[%evp 9,69,14,10,10,7,11,20,0,-12,-29,-10,-38,-43,-53,-49,-47,-55,-46,-65,-63,-47,-82,-36,-48,0,0,41,64,118,49,33,53,143,81,97,102,83,127,216,216,333,325,360,356,791,0,193,186,202,180,675,669,623,584,710,689,766,786,785,794,765,760]} 1. e4 {[%emt 0:00:01]} c5 {[%emt 0:01:59]} 2. Nf3 {[%emt 0:00:13]} e6 {[%emt 0:00:04]} 3. b3 {[%emt 0:00:04]} a6 {[%emt 0:00:03]} 4. Bb2 {[%emt 0:00:03]} Nc6 {[%emt 0:00:03]} 5. c4 {[%emt 0:00:07]} Nf6 {[%emt 0:00:02]} 6. e5 {[%emt 0:00:50] B40: Sicilian: 2...e6, Unusual lines.} Ng4 {[%emt 0:00:05]} 7. h3 {[%emt 0:00:07]} Nh6 {[%emt 0:00:03]} 8. Nc3 {[%emt 0:00:58][%cal Bb1c3,Bc3e4,Be4d6][%mdl 32] The position is equal.} d6 {[%emt 0:01:33]} 9. exd6 {[%emt 0:08:33] [#]} e5 $146 {[%emt 0:00:36]} ({Predecessor:} 9... Bxd6 10. Ne4 f6 11. d4 cxd4 12. Nxd6+ Qxd6 13. Nxd4 O-O 14. Nxc6 Qxc6 15. Qd3 e5 {½-½ Efroimski,M (2439)-Avramidou,A (2321) Eindhoven Dutch (Women) Top 10 op 2023 (9)}) 10. Nxe5 {[%emt 0:07:32]} Nxe5 {[%emt 0:02:02]} 11. Qe2 {[%emt 0:00:17]} Bxd6 {[%emt 0:00:08] Strongly threatening ...0-0.} (11... Qxd6 12. Nd5 (12. f4 Be7 $16) 12... f6 13. f4 $16) 12. Ne4 {[%emt 0:00:10]} O-O {[%emt 0:02:44] And now ...Nc6 would win.} (12... f6 13. Nxd6+ (13. f4 O-O $11) 13... Qxd6 14. f4 $11) 13. Nxd6 {[%emt 0:00:21]} Ng6 {[%emt 0:30:14]} 14. Qd3 {[%emt 0:02:04]} Qe7+ {[%emt 0:00:05][%mdl 1024] Black has compensation.} 15. Kd1 {[%emt 0:00:32]} Be6 {[%emt 0:03:04]} (15... Bd7 $17) 16. Ne4 $1 $15 {[%emt 0:06:31]} Rad8 {[%emt 0:13:07]} (16... Nf5 $15) 17. Qe3 $36 {[%emt 0:04:43][%mdl 2048] White has some pressure.} Nf5 {[%emt 0:08:01]} 18. Qxc5 {[%emt 0:02:25]} Qd7 {[%emt 0:02:26]} (18... Nd6 $1 $14 19. Nxd6 (19. Qd4 f5 $16) 19... Rxd6) 19. Kc2 {[%emt 0:11:49]} (19. Qb6 $16) 19... b5 $14 {[%emt 0:03:01] ...Rc8 would be deadly.} 20. d3 {[%emt 0:04:56]} (20. cxb5 $2 Rc8 21. Bc3 Rxc5 22. Nxc5 Qa7 23. Nxe6 fxe6 24. bxa6 Qxf2 $19) 20... Nf4 {[%emt 0:11:33] [#]} (20... Kh8 $14) 21. Bxg7 $1 {[%emt 0:06:26][%mdl 512]} Kxg7 $16 {[%emt 0:02:57]} 22. Qe5+ {[%emt 0:00:13]} f6 {[%emt 0:00:02]} 23. Qxf4 {[%emt 0:00:08]} Qd4 {[%emt 0:00:30]} (23... Nd4+ $16 {keeps fighting.} 24. Kb2 Qe7) 24. Re1 $18 {[%emt 0:09:23]} a5 {[%emt 0:06:04] [#]} (24... Kh8 $142 25. f3 Qb6) 25. g4 $1 {[%emt 0:05:35]} (25. cxb5 a4 26. Kb1 axb3 27. axb3 Ra8 28. Qc7+ Rf7 $19) 25... bxc4 {[%emt 0:02:53]} 26. dxc4 {[%emt 0:00:59]} (26. gxf5 cxb3+ 27. axb3 Bd5 $18) 26... a4 $2 {[%emt 0:00:27]} (26... Nh4 27. Qe3 (27. Kb1 Bf7 $11) 27... Bf7 28. Qxd4 Rxd4) 27. Qc7+ $2 {[%emt 0:00:53]} ({Only move:} 27. gxf5 $18 a3 28. Rb1 (28. fxe6 $2 Qb2#)) 27... Rf7 $2 {[%emt 0:01:31]} (27... Kh8 $1 $11 28. Qa5 (28. gxf5 axb3+ 29. axb3 Ra8 30. Rb1 Bxf5 31. b4 Bxe4+ 32. Kb3 Bxb1) 28... Nd6 29. Nxd6 axb3+ 30. axb3 (30. Kxb3 Rxd6 31. Kc2 Bd7 $19) 30... Ra8) 28. Qc5 {[%emt 0:00:12]} axb3+ {[%emt 0:02:25]} 29. axb3 {[%emt 0:00:06]} Qd7 $2 {[%emt 0:00:35]} (29... Ne3+ 30. Rxe3 Qd1+ 31. Kb2 Rd2+ 32. Nxd2 Qxd2+ 33. Ka3 Qc1+ 34. Ka4 Qa1+ 35. Kb4 (35. Kb5 Rb7+ $11) 35... Rb7+ 36. Qb5 Rxb5+ 37. cxb5 Bf7) 30. gxf5 {[%emt 0:01:06] White is clearly winning.} Bxf5 {[%emt 0:00:03] [#] ( -> ...Qd2+)} 31. Qd5 {[%emt 0:04:58] Repels Qd2+} Qc8 {[%emt 0:01:22]} (31... Qxd5 32. cxd5) 32. Rg1+ {[%emt 0:00:39]} Kf8 {[%emt 0:00:28]} 33. Qb5 {[%emt 0:02:53]} Rb7 {[%emt 0:00:56]} 34. Qa5 {[%emt 0:00:44]} ({Not} 34. Qa6 Bxe4+ 35. Kc1 (35. Rxe4 Rd2+ {[%mdl 64] Double Attack} 36. Kc1 Rd1+ 37. Kc2 Rd2+ {[%mdl 64] Double Attack} 38. Kc1 Rd1+ 39. Kc2 Rd2+ $11 {[%mdl 64] Decoy, Double Attack}) 35... Qf5 36. Rxe4 Qxf2 37. Qa3+ (37. Qxb7 Qd2+ 38. Kb1 Qd1+ 39. Kb2 Qd2+ 40. Kb1 Qd1+ 41. Kb2 Qd2+ 42. Kb1 $11) 37... Kf7 $16) 34... Qd7 {[%emt 0:01:53]} 35. Qc5+ {[%emt 0:00:08] Ingenious play by Sathish!   Weighted Error Value: White=0.29 (precise) /Black=0.62} 1-0